bitfinex-derivatives/quotes_BTCF0:USTF0_20220102
["timestamp","ask_amount","ask_price","bid_price","bid_amount"]
[1641101421850,1.6902167,46977.0,46966.0,0.320413]
[1641101422050,1.6902167,46977.0,46973.0,0.14033567]
[1641101422251,0.14033567,46980.0,46973.0,0.14033567]
[1641101422252,0.14033567,46980.0,46973.0,0.22080567]
[1641101422452,0.14033567,46980.0,46978.0,0.001]
[1641101422652,1.96778411,46982.0,46979.0,0.001]
[1641101422851,0.02128254,46985.0,46981.0,0.001]
[1641101423052,0.02128254,46985.0,46984.0,0.001]
[1641101423253,0.02128254,46985.0,46984.0,0.30874]
[1641101425457,0.02128052,46990.0,46984.0,0.30874]
[1641101425656,0.02128052,46990.0,46989.0,0.001]
[1641101425855,0.02128052,46990.0,46989.0,0.010794]
[1641101427357,0.18,47000.0,46989.0,0.010794]
[1641101427358,0.02127861,46994.0,46989.0,0.010794]
[1641101427557,0.02127861,46994.0,46993.0,0.001]
[1641101428559,0.02127861,46994.0,46993.0,3.04153269]
[1641101428760,0.16161249,46998.0,46993.0,3.04153269]
[1641101428972,0.16161249,46998.0,46994.0,0.001]
[1641101429162,0.16161249,46998.0,46994.0,0.08195]
[1641101429860,0.02803328,46995.0,46994.0,0.08195]
[1641101430263,0.02,46995.0,46994.0,0.22228567]
[1641101430662,0.02803328,46995.0,46994.0,0.22228567]
[1641101431262,0.02803328,46995.0,46994.0,0.43568567]
[1641101433967,0.02803328,46995.0,46994.0,0.22228567]
[1641101434164,0.0493123,46995.0,46987.0,0.14033567]
[1641101434366,0.18,46991.0,46986.0,0.009794]
[1641101434767,0.20128272,46987.0,46982.0,0.14033567]
[1641101435169,0.00803328,46986.0,46982.0,0.14033567]
[1641101435366,0.00803328,46986.0,46985.0,0.001]
[1641101436468,0.00803328,46986.0,46982.0,0.14033567]
[1641101439272,0.36088365,47010.0,46982.0,0.14033567]
[1641101439273,0.02,46995.0,46991.0,0.42560775]
[1641101439473,0.02,46995.0,46991.0,0.48411775]
[1641101439673,0.02,46995.0,46992.0,0.326533]
[1641101440273,0.02,46995.0,46994.0,0.49507134]
[1641101440673,0.02,46995.0,46994.0,0.28067134]
[1641101440870,0.02,46995.0,46994.0,0.14033567]
[1641101449175,0.38088365,46995.0,46994.0,0.14033567]
[1641101451278,0.02,46995.0,46994.0,0.12824291]
[1641101451483,0.02,46995.0,46990.0,0.05904]
[1641101451679,0.02,46995.0,46984.0,0.35234208]
[1641101452379,0.14033567,46994.0,46984.0,0.35234208]
[1641101452584,0.14033567,46994.0,46983.0,0.60568413]
[1641101452790,0.14033567,46994.0,46984.0,0.2134]
[1641101453289,0.50121932,46994.0,46984.0,0.2134]
[1641101454089,0.36088365,46994.0,46987.0,0.4256477]
[1641101454289,0.36088365,46994.0,46991.0,0.18]
[1641101454489,0.36088365,46994.0,46992.0,0.14033567]
[1641101454694,0.36088365,46994.0,46992.0,0.45920867]
[1641101455792,0.02,46995.0,46992.0,0.45920867]
[1641101456492,0.02,46995.0,46992.0,0.14033567]
[1641101470607,0.09070494,46994.0,46993.0,1.20239237]
[1641101473408,0.09070494,46994.0,46993.0,0.37390176]
[1641101477718,0.09070494,46994.0,46993.0,0.69038576]
[1641101478114,0.02,46995.0,46993.0,0.69038576]
[1641101478115,0.02,46995.0,46994.0,0.54827747]
[1641101478313,0.02,46995.0,46994.0,0.54927747]
[1641101478515,0.02,46995.0,46994.0,0.529069]
[1641101479312,0.62451163,46995.0,46994.0,1.71411842]
[1641101479913,0.62451163,46995.0,46994.0,0.529069]
[1641101480114,0.02,46995.0,46994.0,0.529069]
[1641101480315,0.60451163,46996.0,46994.0,1.826069]
[1641101480516,1.25924006,47003.0,46999.0,1.117]
[1641101480719,1.16314006,47003.0,47002.0,0.46167134]
[1641101481014,1.11014006,47003.0,47002.0,0.46333834]
[1641101481416,1.44353461,47007.0,47002.0,0.46333834]
[1641101481616,3.00899251,47014.0,47006.0,0.001]
[1641101481822,1.44353461,47014.0,47006.0,0.07347]
[1641101482816,2.1298351,47015.0,47011.0,0.14033567]
[1641101483618,0.68630049,47015.0,47011.0,0.14033567]
[1641101483819,2.1298351,47016.0,47011.0,0.14033567]
[1641101484621,1.44353461,47015.0,47011.0,0.14033567]
[1641101485525,1.44353461,47016.0,47011.0,0.14033567]
[1641101485725,1.44353461,47016.0,47011.0,0.20532567]
[1641101487324,1.32969585,47012.0,47011.0,0.20532567]
[1641101488124,1.32969585,47012.0,47011.0,0.38532567]
[1641101488327,1.32969585,47012.0,47011.0,0.20532567]
[1641101488725,1.32969585,47016.0,47011.0,0.20532567]
[1641101489127,1.32969585,47016.0,47012.0,0.07259876]
[1641101489525,1.32969585,47016.0,47011.0,0.20532567]
[1641101489928,1.32969585,47016.0,47013.0,0.81950104]
[1641101490327,1.32969585,47017.0,47014.0,0.58441516]
[1641101491127,1.32969585,47017.0,47016.0,0.35063403]
[1641101491729,1.32969585,47017.0,47014.0,0.58441516]
[1641101491930,1.32969585,47017.0,47015.0,0.58441516]
[1641101493829,1.32969585,47018.0,47016.0,0.001]
[1641101494056,1.32969585,47018.0,47017.0,0.001]
[1641101494257,1.44353461,47021.0,47017.0,0.001]
[1641101494451,1.44353461,47021.0,47020.0,0.001]
[1641101495560,0.14033567,47022.0,47020.0,0.001]
[1641101495762,0.14033567,47022.0,47008.0,2.41466547]
[1641101496454,0.14033567,47022.0,47012.0,0.31916]
[1641101496656,0.14033567,47022.0,47017.0,0.001]
[1641101496854,0.14033567,47022.0,47013.0,0.28275385]
[1641101497455,0.14033567,47022.0,47014.0,0.320583]
[1641101497962,0.14033567,47022.0,47019.0,0.001]
[1641101498156,0.14033567,47022.0,47014.0,0.320583]
[1641101498661,0.14033567,47022.0,47013.0,0.28275385]
[1641101499260,0.14033567,47022.0,47018.0,0.001]
[1641101499460,0.14033567,47022.0,47021.0,0.001]
[1641101499960,0.14033567,47022.0,47013.0,0.28275385]
[1641101500563,0.14033567,47022.0,47014.0,0.3184]
[1641101500761,0.14033567,47022.0,47019.0,0.001]
[1641101500964,0.14033567,47022.0,47021.0,0.001]
[1641101501166,0.14033567,47022.0,47021.0,0.0844]
[1641101501363,0.0212644,47026.0,47021.0,0.0844]
[1641101501563,0.0212644,47026.0,47021.0,0.0834]
[1641101502064,0.14033567,47027.0,47021.0,0.0834]
[1641101502564,0.36145856,47029.0,47021.0,0.0834]
[1641101502768,0.0212625,47030.0,47021.0,0.0834]
[1641101502963,0.0212625,47030.0,47024.0,0.14033567]
[1641101505865,0.0212625,47030.0,47025.0,0.317696]
[1641101506065,0.0212611,47033.0,47025.0,0.317696]
[1641101506275,0.0212611,47033.0,47024.0,0.14033567]
[1641101507368,1.44353461,47030.0,47026.0,0.35062587]
[1641101508666,1.44353461,47031.0,47027.0,0.35062587]
[1641101509769,1.44353461,47031.0,47026.0,0.35062587]
[1641101511269,1.32951183,47028.0,47027.0,0.35062587]
[1641101511672,1.44353461,47031.0,47027.0,0.35062587]
[1641101512670,1.32950009,47028.0,47027.0,0.35062587]
[1641101513570,1.44353461,47031.0,47027.0,0.35062587]
[1641101513771,1.44353461,47031.0,47026.0,0.35062587]
[1641101514872,1.3294934,47028.0,47027.0,0.35062587]
[1641101515071,1.3294934,47028.0,47027.0,0.35162587]
[1641101515871,1.3294934,47028.0,47027.0,0.001]
[1641101516073,0.60343351,47029.0,47027.0,0.001]
[1641101516272,0.60343351,47029.0,47028.0,0.001]
[1641101517775,0.84480691,47030.0,47028.0,0.001]
[1641101518076,0.0212611,47033.0,47029.0,0.001]
[1641101518276,0.2012611,47033.0,47032.0,0.001]
[1641101520193,0.29190618,47033.0,47032.0,0.001]
[1641101520580,0.11190618,47033.0,47032.0,0.001]
[1641101520780,0.29190618,47033.0,47032.0,0.001]
[1641101522083,0.11190618,47033.0,47032.0,0.001]
[1641101522282,0.29190618,47033.0,47032.0,0.001]
[1641101524890,0.11190618,47033.0,47032.0,0.001]
[1641101525084,0.29190618,47033.0,47032.0,0.001]
[1641101526989,0.11190618,47033.0,47032.0,0.001]
[1641101527801,0.29190618,47033.0,47032.0,0.001]
[1641101528402,0.29190618,47033.0,47024.0,0.14033567]
[1641101528802,0.11190618,47033.0,47024.0,0.14033567]
[1641101529406,0.09064508,47032.0,47029.0,0.001]
[1641101529604,0.09064508,47032.0,47031.0,0.001]
[1641101535912,0.93538562,47032.0,47031.0,0.001]
[1641101539425,0.09064508,47032.0,47031.0,0.001]
[1641101540619,1.41961994,47032.0,47031.0,0.001]
[1641101541318,0.17824508,47032.0,47031.0,0.001]
[1641101542521,0.09064508,47032.0,47031.0,0.001]
[1641101543823,1.41960715,47032.0,47031.0,0.001]
[1641101546034,0.09064508,47032.0,47031.0,0.001]
[1641101546627,0.09064508,47032.0,47031.0,0.07502]
[1641101552336,0.09064508,47032.0,47031.0,0.392758]
[1641101552734,0.09064508,47032.0,47031.0,0.07502]
[1641101553136,0.09064508,47032.0,47031.0,0.42463873]
[1641101553738,0.09064508,47033.0,47031.0,0.42463873]
[1641101553953,0.09064508,47033.0,47032.0,0.001]
[1641101554754,1.32896207,47036.0,47032.0,0.35061873]
[1641101554956,1.32896207,47036.0,47035.0,0.001]
[1641101555352,1.32896207,47036.0,47035.0,0.318215]
[1641101555554,1.32896207,47036.0,47035.0,0.45855067]
[1641101555954,1.32896207,47036.0,47035.0,0.14133567]
[1641101556354,0.02125747,47041.0,47035.0,0.14133567]
[1641101556355,1.35021954,47041.0,47035.0,0.72403356]
[1641101556554,1.35021954,47041.0,47035.0,0.72303356]
[1641101556956,1.32896207,47041.0,47035.0,0.72303356]
[1641101557158,1.32896207,47041.0,47035.0,0.90303356]
[1641101557657,1.32896207,47041.0,47040.0,0.20033567]
[1641101557858,0.63423844,47041.0,47040.0,0.33012967]
[1641101558061,0.61464944,47041.0,47040.0,0.86549467]
[1641101558256,0.35169366,47041.0,47040.0,3.04540767]
[1641101558459,1.44820807,47044.0,47040.0,3.16619197]
[1641101558658,0.5950946,47050.0,47044.0,3.05779215]
[1641101558857,0.5844946,47050.0,47049.0,0.001]
[1641101559057,0.5004946,47050.0,47049.0,0.001]
[1641101559558,1.42570267,47053.0,47049.0,0.28167134]
[1641101559757,1.58670671,47060.0,47052.0,0.001]
[1641101560063,1.5654579,47060.0,47057.0,0.001]
[1641101560258,0.18,47066.0,47059.0,0.001]
[1641101560557,1.5654579,47067.0,47058.0,0.05843263]
[1641101560758,1.5654579,47067.0,47057.0,0.0588]
[1641101561358,1.5654579,47067.0,47058.0,0.66865093]
[1641101561559,0.02124506,47069.0,47063.0,0.14033567]
[1641101562361,0.18,47068.0,47063.0,0.14033567]
[1641101562563,0.02124506,47069.0,47063.0,0.14033567]
[1641101562760,0.20124506,47069.0,47063.0,0.14033567]
[1641101562961,0.02124506,47069.0,47063.0,0.14033567]
[1641101563362,0.18,47067.0,47063.0,0.14033567]
[1641101563560,0.06,47064.0,47063.0,0.14033567]
[1641101563762,0.20124806,47064.0,47063.0,0.14033567]
[1641101564261,0.02124806,47064.0,47063.0,0.14033567]
[1641101564960,0.20124806,47064.0,47063.0,0.14033567]
[1641101565164,0.02124806,47064.0,47063.0,0.14033567]
[1641101565361,0.20124806,47064.0,47063.0,0.14033567]
[1641101565662,0.02124806,47064.0,47063.0,0.14033567]
[1641101567675,0.02124806,47064.0,47051.0,0.09315795]
[1641101567676,0.27604806,47064.0,47057.0,0.14033567]
[1641101567869,0.18,47058.0,47048.0,0.0318]
[1641101568068,0.18,47050.0,47035.0,0.02125237]
[1641101568275,0.24393,47050.0,47035.0,0.02125237]
[1641101568467,0.24393,47050.0,47047.0,0.0312]
[1641101568669,0.06393,47050.0,47049.0,0.28167134]
[1641101568868,0.24393,47050.0,47049.0,0.28167134]
[1641101569367,0.06393,47050.0,47049.0,0.28167134]
[1641101570768,0.18,47055.0,47049.0,0.28167134]
[1641101570971,0.15012967,47060.0,47049.0,0.28067134]
[1641101571168,0.18,47058.0,47049.0,0.28067134]
[1641101571367,0.18,47053.0,47049.0,0.28067134]
[1641101571570,0.15012967,47060.0,47052.0,0.001]
[1641101571769,0.15012967,47060.0,47049.0,0.28067134]
[1641101571968,0.18,47058.0,47049.0,0.28067134]
[1641101572671,0.15012967,47060.0,47049.0,0.28067134]
[1641101572870,0.18,47053.0,47049.0,0.28067134]
[1641101573083,0.18,47053.0,47052.0,0.001]
[1641101573270,0.15012967,47060.0,47049.0,0.28067134]
[1641101573271,0.18,47058.0,47049.0,0.28067134]
[1641101573873,0.14033567,47060.0,47049.0,0.28067134]
[1641101574072,0.02125237,47064.0,47049.0,0.28067134]
[1641101574575,0.18,47058.0,47050.0,0.31807]
[1641101574972,0.18,47058.0,47049.0,0.28067134]
[1641101575580,0.20125371,47050.0,47049.0,0.14033567]
[1641101575773,0.29294371,47050.0,47049.0,0.14033567]
[1641101575974,0.29294371,47050.0,47041.0,0.14033567]
[1641101576173,0.18,47043.0,47036.0,0.14033567]
[1641101577074,0.18,47038.0,47036.0,0.14033567]
[1641101577275,0.02125944,47037.0,47036.0,0.14033567]
[1641101578075,0.02125944,47037.0,47036.0,0.14133567]
[1641101585297,0.95389195,47037.0,47036.0,0.75479354]
[1641101585691,0.95389195,47037.0,47036.0,0.75379354]
[1641101585893,1.19806195,47037.0,47036.0,0.61345787]
[1641101586493,1.19806195,47037.0,47036.0,1e-08]
[1641101586693,1.19806195,47037.0,47036.0,1.16456637]
[1641101587493,0.35605014,47037.0,47036.0,1.16456637]
[1641101587710,0.35605014,47037.0,47031.0,0.14033567]
[1641101587711,1.47305014,47037.0,47031.0,0.14033567]
[1641101587912,0.2012634,47032.0,47023.0,1.3860136]
[1641101588111,0.18,47028.0,47023.0,1.3860136]
[1641101589009,0.36255299,47024.0,47020.0,1.4060136]
[1641101590211,0.36255299,47023.0,47020.0,0.02]
[1641101590419,0.36255299,47023.0,47022.0,0.001]
[1641101590812,0.60425498,47024.0,47022.0,0.001]
[1641101591012,0.60425498,47024.0,47023.0,0.001]
[1641101592018,0.18,47026.0,47020.0,0.02]
[1641101593117,0.18,47026.0,47025.0,0.001]
[1641101593319,0.14033567,47028.0,47025.0,0.001]
[1641101593522,0.14033567,47028.0,47027.0,0.001]
[1641101593921,0.32033567,47028.0,47027.0,0.001]
[1641101594617,0.14033567,47028.0,47027.0,0.001]
[1641101595920,0.32033567,47028.0,47020.0,0.02]
[1641101597824,0.18,47026.0,47020.0,0.02]
[1641101598825,1.25733567,47028.0,47020.0,0.02]
[1641101599024,0.18,47026.0,47020.0,0.02]
[1641101599224,1.25733567,47028.0,47020.0,0.02]
[1641101599425,0.18,47026.0,47020.0,0.02]
[1641101599924,1.25733567,47028.0,47020.0,0.02]
[1641101600125,0.18,47027.0,47020.0,0.02]
[1641101602426,0.18,47026.0,47020.0,0.02]
[1641101602727,0.14033567,47028.0,47020.0,0.02]
[1641101603227,0.18,47027.0,47020.0,0.02]
[1641101603430,0.43090941,47030.0,47020.0,0.02]
[1641101603727,0.18,47027.0,47020.0,0.02]
[1641101604228,1.54790941,47030.0,47020.0,0.02]
[1641101604628,0.14033567,47028.0,47020.0,0.02]
[1641101606033,0.06,47027.0,47020.0,0.02]
[1641101606232,0.14033567,47028.0,47020.0,0.02]
[1641101607035,0.18,47027.0,47020.0,0.02]
[1641101607334,0.14033567,47028.0,47020.0,0.02]
[1641101607935,0.18,47027.0,47020.0,0.02]
[1641101608736,0.14033567,47028.0,47020.0,0.02]
[1641101609937,0.18,47027.0,47020.0,0.02]
[1641101610538,0.36131379,47023.0,47021.0,0.5502569]
[1641101614743,0.36131379,47023.0,47022.0,0.14033567]
[1641101614946,0.0212653,47024.0,47022.0,0.14033567]
[1641101614947,0.38257909,47024.0,47022.0,0.14033567]
[1641101616146,0.0212653,47024.0,47023.0,0.5502569]
[1641101616846,0.0212653,47024.0,47022.0,0.14033567]
[1641101617547,0.0212653,47024.0,47023.0,0.5502569]
[1641101618149,0.38257909,47024.0,47023.0,0.5502569]
[1641101618749,0.38257909,47024.0,47022.0,0.14033567]
[1641101619750,0.38257909,47024.0,47023.0,0.5502569]
[1641101620151,0.0212653,47024.0,47022.0,0.14033567]
[1641101621353,0.0212653,47024.0,47023.0,0.5502569]
[1641101622767,0.38257909,47024.0,47022.0,0.14033567]
[1641101623267,0.0212653,47024.0,47023.0,0.5502569]
[1641101623967,0.0212653,47024.0,47020.0,1.29893121]
[1641101624771,0.0212653,47024.0,47023.0,0.14033567]
[1641101626272,0.0212653,47024.0,47023.0,0.69059257]
[1641101626681,0.60425498,47025.0,47023.0,0.76719257]
[1641101626879,0.60425498,47025.0,47023.0,1.93948136]
[1641101627876,0.60425498,47025.0,47023.0,0.76719257]
[1641101628083,0.009794,47028.0,47024.0,0.5502569]
[1641101628877,0.009794,47028.0,47027.0,0.82008489]
[1641101629078,0.03105862,47028.0,47027.0,0.82008489]
[1641101630678,0.03105862,47028.0,47027.0,1.37034179]
[1641101631481,0.6353136,47028.0,47027.0,0.5502569]
[1641101635184,0.6353136,47028.0,47027.0,0.69059257]
[1641101635685,0.6255196,47028.0,47027.0,0.69059257]
[1641101635885,0.6255196,47028.0,47027.0,1.51067746]
[1641101636284,0.6255196,47028.0,47027.0,0.69059257]
[1641101636484,0.02126462,47028.0,47027.0,1.27727221]
[1641101637186,0.02126462,47028.0,47027.0,0.72701531]
[1641101637888,0.02126462,47028.0,47027.0,1.27727221]
[1641101638996,0.02126462,47028.0,47027.0,0.69059257]
[1641101648602,0.3835624,47028.0,47027.0,1.51067746]
[1641101650507,0.02126462,47028.0,47027.0,0.69059257]
[1641101650714,0.95786051,47028.0,47027.0,0.69059257]
[1641101655108,0.11190354,47028.0,47027.0,0.69059257]
[1641101655711,0.95786051,47028.0,47027.0,0.69059257]
[1641101655908,1.03466051,47028.0,47027.0,0.69059257]
[1641101656913,2.33166172,47028.0,47021.0,1.3860136]
[1641101657111,0.18,47022.0,47018.0,0.14033567]
[1641101657312,0.18,47019.0,47018.0,0.14033567]
[1641101657513,0.009794,47021.0,47018.0,0.14033567]
[1641101657714,0.06,47019.0,47018.0,0.14033567]
[1641101657913,0.189794,47021.0,47018.0,0.14033567]
[1641101658917,0.84595697,47019.0,47018.0,0.14033567]
[1641101659617,0.009794,47021.0,47018.0,0.14033567]
[1641101660519,1.126794,47021.0,47018.0,0.14033567]
[1641101660721,0.18,47019.0,47018.0,0.14033567]
[1641101661321,1.117,47019.0,47018.0,0.14033567]
[1641101662224,1.297,47019.0,47018.0,0.14033567]
[1641101662424,0.009794,47021.0,47018.0,0.14033567]
[1641101662838,0.18,47019.0,47018.0,0.14033567]
[1641101663039,1.31827127,47019.0,47011.0,1.55751467]
[1641101663240,0.18,47014.0,47011.0,1.417179]
[1641101663438,0.009794,47013.0,47011.0,1.417179]
[1641101664033,0.009794,47013.0,47008.0,0.65340504]
[1641101664234,0.85596797,47013.0,47009.0,1.30044034]
[1641101664435,1.13827312,47010.0,47009.0,1.30044034]
[1641101665034,1.13827312,47010.0,47003.0,0.88541565]
[1641101665335,1.117,47004.0,47003.0,0.88541565]
[1641101665535,1.20433,47004.0,47003.0,0.88541565]
[1641101665734,1.34466567,47004.0,47003.0,0.88541565]
[1641101665937,1.34466567,47004.0,46996.0,0.66650438]
[1641101666235,1.34466567,47004.0,46996.0,0.14033567]
[1641101666634,0.02127774,46997.0,46996.0,0.14033567]
[1641101667035,0.02127774,46997.0,46996.0,0.37417572]
[1641101667637,0.20127774,46997.0,46996.0,0.37417572]
[1641101667836,0.34161341,46997.0,46992.0,1.417179]
[1641101668035,0.16161341,46997.0,46985.0,0.18]
[1641101668538,0.16161341,46997.0,46989.0,0.00952823]
[1641101676747,0.16161341,46997.0,46984.0,0.18]
[1641101677549,0.34161341,46997.0,46984.0,0.18]
[1641101678352,0.34161341,46997.0,46983.0,0.32033567]
[1641101678550,0.16161341,46997.0,46983.0,0.14033567]
[1641101678752,0.34161341,46997.0,46984.0,0.18]
[1641101678953,0.16161341,46997.0,46984.0,0.18]
[1641101679153,0.34161341,46997.0,46984.0,0.18]
[1641101679352,0.16161341,46997.0,46984.0,0.18]
[1641101679551,0.16161341,46997.0,46983.0,0.14033567]
[1641101679951,0.16161341,46997.0,46984.0,0.18]
[1641101681152,0.16161341,46997.0,46988.0,0.32033567]
[1641101681953,0.14033567,46997.0,46988.0,0.14033567]
[1641101682152,0.02128281,46989.0,46988.0,0.14033567]
[1641101682353,0.02128281,46989.0,46988.0,0.14133567]
[1641101685859,0.02128281,46989.0,46988.0,0.14033567]
[1641101686358,0.02128008,46991.0,46988.0,0.14033567]
[1641101686761,0.18,47002.0,46988.0,0.14033567]
[1641101686762,0.56576409,47012.0,46989.0,0.18]
[1641101686958,0.56576409,47012.0,46994.0,0.18]
[1641101687158,0.14033567,47012.0,46997.0,0.18]
[1641101687558,0.14033567,47012.0,46994.0,0.18]
[1641101687760,0.02127404,47005.0,46995.0,0.18]
[1641101688361,0.02127056,47013.0,47001.0,0.18]
[1641101688561,0.02127056,47013.0,47004.0,0.18]
[1641101688960,0.02127056,47013.0,47001.0,0.25868]
[1641101689162,0.02127056,47013.0,47001.0,0.07868]
[1641101690463,0.02127056,47013.0,47009.0,0.14033567]
[1641101700287,0.36142474,47014.0,47009.0,0.14033567]
[1641101700288,0.02127192,47010.0,47009.0,0.14033567]
[1641101706394,0.36142474,47015.0,47009.0,0.14033567]
[1641101706594,0.36142474,47015.0,47012.0,0.18]
[1641101706795,0.36142474,47015.0,47014.0,0.14033567]
[1641101707293,0.36142474,47015.0,47014.0,0.14133567]
[1641101707693,0.02126912,47016.0,47014.0,0.14133567]
[1641101707894,0.02126912,47016.0,47015.0,0.001]
[1641101711200,0.02126694,47021.0,47015.0,0.001]
[1641101711500,0.02126694,47021.0,47014.0,0.32033567]
[1641101711900,0.02126694,47021.0,47014.0,0.14033567]
[1641101712100,0.02126694,47021.0,47017.0,0.18]
[1641101712704,0.85711859,47032.0,47020.0,0.181]
[1641101712904,0.85711859,47032.0,47030.0,0.40067134]
[1641101713102,3.37664577,47032.0,47030.0,0.53807134]
[1641101713303,3.37664577,47032.0,47030.0,0.35807134]
[1641101713501,3.37664577,47032.0,47030.0,0.53807134]
[1641101713701,3.37664577,47032.0,47030.0,0.35807134]
[1641101714102,0.20226345,47031.0,47030.0,0.14033567]
[1641101714302,0.28036345,47031.0,47018.0,0.18]
[1641101714501,0.10036345,47031.0,47018.0,1.48375144]
[1641101714703,0.18,47030.0,47021.0,1.1845687]
[1641101714901,0.18,47030.0,47022.0,0.14033567]
[1641101716402,0.10036345,47031.0,47022.0,0.32033567]
[1641101716602,0.02126345,47031.0,47026.0,0.18]
[1641101716805,0.02126345,47031.0,47022.0,0.14033567]
[1641101717103,0.02126345,47031.0,47030.0,0.14033567]
[1641101719307,0.20126345,47031.0,47022.0,0.14033567]
[1641101719507,0.29306345,47031.0,47022.0,0.14033567]
[1641101720912,0.43339912,47031.0,47022.0,0.14033567]
[1641101721510,1.55039912,47031.0,47022.0,0.14033567]
[1641101721710,0.84495842,47027.0,47022.0,0.14033567]
[1641101723712,0.36211319,47025.0,47022.0,0.14033567]
[1641101724112,0.02126613,47023.0,47022.0,0.14033567]
[1641101724312,0.09654613,47023.0,47020.0,0.35559174]
[1641101724915,0.07528,47023.0,47020.0,0.35559174]
[1641101725716,0.18,47021.0,47020.0,0.35559174]
[1641101725914,0.20126974,47021.0,47020.0,0.35559174]
[1641101726115,0.20126974,47021.0,47011.0,1.44408711]
[1641101726116,0.20126974,47021.0,47014.0,0.49592741]
[1641101726314,0.18,47017.0,47014.0,0.49592741]
[1641101727313,0.18,47017.0,47014.0,0.14033567]
[1641101727314,0.36219886,47015.0,47014.0,0.14033567]
[1641101728214,0.009794,47016.0,47014.0,0.14033567]
[1641101729516,0.61346469,47016.0,47014.0,0.14033567]
[1641101731721,0.02127129,47015.0,47014.0,0.14033567]
[1641101732320,0.02127129,47015.0,47008.0,0.35559174]
[1641101732521,0.02127651,47009.0,47008.0,0.35559174]
[1641101732721,0.11551051,47009.0,47008.0,0.35559174]
[1641101732921,0.11551051,47009.0,47005.0,0.82994257]
[1641101732922,1.117,47006.0,47005.0,0.82994257]
[1641101733124,0.18,47006.0,47005.0,0.82994257]
[1641101734223,0.18,47006.0,47000.0,0.14033567]
[1641101734723,0.18,47004.0,47000.0,0.14033567]
[1641101735225,0.09498449,47000.0,46998.0,0.82994257]
[1641101735825,1.22522656,47000.0,46998.0,0.82994257]
[1641101736830,1.22522656,47000.0,46996.0,1.1845687]
[1641101737029,0.18,46997.0,46996.0,1.1845687]
[1641101737230,0.08282,46997.0,46996.0,1.43257566]
[1641101737431,0.08282,46997.0,46996.0,0.24800696]
[1641101737844,1.02000876,46997.0,46996.0,0.24800696]
[1641101738645,0.1735171,46997.0,46996.0,0.24800696]
[1641101738847,0.0906971,46997.0,46996.0,0.24800696]
[1641101740244,0.02127802,47001.0,46995.0,0.14033567]
[1641101748856,0.02127802,47001.0,46998.0,0.18]
[1641101749051,0.51383892,47010.0,46998.0,0.25432]
[1641101749254,0.51383892,47010.0,47003.0,0.14033567]
[1641101749255,0.38290793,47010.0,47003.0,0.14033567]
[1641101749452,0.18,47004.0,47003.0,0.14033567]
[1641101749653,0.20127529,47004.0,46999.0,0.00953173]
[1641101749855,0.02127529,47004.0,46995.0,0.14033567]
[1641101750553,0.18,47001.0,46995.0,0.14033567]
[1641101751354,0.16161096,47004.0,46995.0,0.14033567]
[1641101751355,0.18,46996.0,46995.0,0.14033567]
[1641101751556,0.26895992,46996.0,46990.0,0.59491675]
[1641101751761,0.26895992,46996.0,46987.0,0.35697604]
[1641101751957,0.27875392,46996.0,46987.0,0.35697604]
[1641101752156,0.27875392,46996.0,46988.0,0.00953473]
[1641101752757,0.27875392,46996.0,46987.0,0.35697604]
[1641101753159,0.27875392,46996.0,46985.0,0.59491675]
[1641101753358,0.27875392,46996.0,46984.0,0.14033567]
[1641101753759,0.27875392,46996.0,46986.0,0.00953558]
[1641101754060,0.27875392,46996.0,46984.0,0.14033567]
[1641101754061,0.27875392,46996.0,46985.0,0.00953558]
[1641101754457,0.27875392,46996.0,46987.0,0.00953558]
[1641101754658,0.27875392,46996.0,46986.0,0.00953558]
[1641101755159,0.27875392,46996.0,46985.0,0.00953558]
[1641101755360,0.27875392,46996.0,46987.0,0.00953558]
[1641101755659,0.27875392,46996.0,46986.0,0.00953558]
[1641101755860,0.27875392,46996.0,46984.0,0.14033567]
[1641101756360,0.27875392,46996.0,46985.0,0.00953613]
[1641101758066,0.27875392,46996.0,46986.0,0.27462036]
[1641101758265,0.36163586,46988.0,46986.0,0.27462036]
[1641101759470,0.36163586,46988.0,46987.0,0.14033567]
[1641101759868,0.36163586,46988.0,46987.0,0.41495603]
[1641101760369,0.38291805,46988.0,46987.0,0.41495603]
[1641101760570,0.38291805,46988.0,46987.0,0.14033567]
[1641101761870,0.02128219,46988.0,46987.0,0.14033567]
[1641101762074,0.02128219,46988.0,46987.0,0.41495603]
[1641101762271,0.62400839,46988.0,46987.0,0.41495603]
[1641101762472,0.62400839,46988.0,46987.0,0.27462036]
[1641101762672,0.02128219,46988.0,46987.0,0.27462036]
[1641101763372,0.02128219,46988.0,46979.0,1.69179936]
[1641101763576,0.02128219,46988.0,46987.0,0.14033567]
[1641101763975,0.02128219,46988.0,46987.0,0.41495603]
[1641101764774,0.03107619,46988.0,46987.0,0.27462036]
[1641101766477,0.39360238,46988.0,46986.0,0.59765598]
[1641101767076,0.38380838,46988.0,46986.0,0.59765598]
[1641101767874,0.36252619,46988.0,46983.0,0.27462036]
[1641101768075,0.36252619,46990.0,46987.0,0.001]
[1641101768274,0.36252619,46990.0,46989.0,0.001]
[1641101768675,0.36252619,46990.0,46984.0,0.06947]
[1641101769277,0.02128086,46991.0,46988.0,0.27462036]
[1641101770279,0.02128086,46991.0,46984.0,0.06947]
[1641101770280,0.02128086,46991.0,46985.0,0.27462036]
[1641101770676,0.02128086,46991.0,46990.0,0.59707152]
[1641101773179,0.02128086,46991.0,46983.0,0.27462036]
[1641101774289,0.02128086,46991.0,46989.0,0.83582323]
[1641101774483,0.02128086,46991.0,46990.0,0.5970166]
[1641101775785,0.02128086,46991.0,46989.0,0.83582323]
[1641101777286,0.02128086,46991.0,46990.0,0.59694065]
[1641101778789,0.02128086,46991.0,46989.0,0.83582323]
[1641101779004,0.02128086,46991.0,46990.0,0.83582323]
[1641101779603,0.02128086,46991.0,46990.0,1.11044359]
[1641101781904,0.02128086,46991.0,46990.0,0.27462036]
[1641101783609,0.36252619,46994.0,46990.0,0.27462036]
[1641101784214,0.6027262,46994.0,46993.0,1.45377218]
[1641101784414,0.62400579,46994.0,46993.0,1.54507218]
[1641101785017,0.62400579,46994.0,46993.0,1.81969254]
[1641101785414,0.6027262,46994.0,46993.0,1.81969254]
[1641101785614,0.8437916,46996.0,46993.0,2.24528178]
[1641101786014,0.8437916,46996.0,46993.0,2.56403178]
[1641101786416,0.8437916,46996.0,46995.0,0.001]